bitfinex/quotes_SOLUSD_20250829
["timestamp","ask_amount","ask_price","bid_price","bid_amount"]
[1756442894844,1e-08,217.96,217.95,49.75720501]
[1756442895145,1e-08,217.96,217.95,23.29838418]
[1756442895343,1e-08,217.96,217.95,25.70071787]
[1756442896435,0.06,217.99,217.98,39.59559401]
[1756442896638,0.06,217.99,217.98,46.16818643]
[1756442896835,0.06,217.99,217.98,40.25559401]
[1756442897038,0.06,217.99,217.98,46.82818643]
[1756442897248,0.06,217.99,217.98,51.41576327]
[1756442902047,0.06,217.99,217.98,51.70008641]
[1756442903155,0.06,217.99,217.98,75.99559401]
[1756442903339,0.76,217.99,217.97,6.57259242]
[1756442904354,0.76,217.99,217.96,20.16818643]
[1756442905350,0.06,217.99,217.98,6.57259242]
[1756442905752,0.06,217.99,217.97,6.57259242]
[1756442907069,0.7,217.98,217.94,6.57259242]
[1756442907364,0.7,217.97,217.94,6.57259242]
[1756442907532,0.7,217.97,217.95,6.57259242]
[1756442907960,0.06,217.99,217.95,6.57259242]
[1756442908459,0.06,217.99,217.97,6.57259242]
[1756442909158,0.06,217.99,217.95,14.25559401]
[1756442909159,0.76,217.99,217.96,6.57259242]
[1756442909354,0.7,217.98,217.95,39.59559401]
[1756442909562,0.7,217.97,217.89,0.66]
[1756442909780,7.27259242,217.97,217.91,6.57259242]
[1756442910067,7.27259242,217.96,217.9,6.57259242]
[1756442910272,0.7,217.95,217.9,6.57259242]
[1756442910470,0.68,217.94,217.89,6.57259242]
[1756442910769,0.68,217.93,217.89,6.57259242]
[1756442910967,0.06,217.99,217.92,26.0]
[1756442911146,0.74,217.99,217.94,6.57259242]
[1756442911346,0.68,217.98,217.94,6.57259242]
[1756442911550,0.68,217.97,217.94,6.57259242]
[1756442912167,0.74,217.99,217.95,6.57259242]
[1756442912355,0.68,217.98,217.95,6.57259242]
[1756442912554,0.68,217.97,217.89,79.0]
[1756442912773,6.57259242,217.95,217.89,6.57259242]
[1756442913075,0.68,217.94,217.89,6.57259242]
[1756442913266,0.68,217.93,217.89,6.57259242]
[1756442913647,0.68,217.93,217.9,6.57259242]
[1756442913840,7.25259242,217.95,217.9,6.57259242]
[1756442914047,0.68,217.94,217.88,13.59559401]
[1756442914380,6.57259242,217.95,217.87,6.57259242]
[1756442914381,6.57259242,217.92,217.87,6.57259242]
[1756442914554,6.57259242,217.93,217.87,6.57259242]
[1756442914759,0.68,217.92,217.87,6.57259242]
[1756442914964,0.68,217.91,217.87,6.57259242]
[1756442915163,0.68,217.91,217.86,4.6200425]
[1756442915472,0.68,217.9,217.86,11.19263492]
[1756442915681,7.25259242,217.89,217.86,0.03]
[1756442915875,6.57259242,217.88,217.86,0.03]
[1756442916256,0.68,217.87,217.86,0.03]
[1756442918681,7.25259242,217.87,217.86,0.03]
[1756442918844,0.68,217.87,217.86,0.03]
[1756442919171,7.25259242,217.87,217.86,0.03]
[1756442920253,0.68,217.87,217.86,0.03]
[1756442920453,3.07423147,217.89,217.86,0.03]
[1756442920673,36.42,217.88,217.86,0.03]
[1756442921670,36.42,217.88,217.86,0.7]
[1756442921851,36.44,217.9,217.86,0.03]
[1756442922253,37.12,217.9,217.86,0.03]
[1756442923477,0.68,217.89,217.86,0.03]
[1756442923678,4.85760759,217.89,217.86,0.03]
[1756442924280,0.68,217.89,217.86,0.03]
[1756442924458,40.61760759,217.9,217.86,0.03]
[1756442924780,0.68,217.89,217.86,0.03]
[1756442925159,0.68,217.88,217.86,0.03]
[1756442925356,4.17760759,217.87,217.86,0.03]
[1756442925756,4.85760759,217.87,217.86,0.03]
[1756442926480,0.68,217.87,217.86,0.03]
[1756442926790,9.44750064,217.87,217.86,0.03]
[1756442926958,12.52261123,217.87,217.86,0.03]
[1756442928482,48.90261123,217.87,217.86,0.03]
[1756442930493,48.88261123,217.87,217.86,0.03]
[1756442932211,3.07511059,217.87,217.86,0.03]
[1756442932510,40.51760759,217.87,217.86,0.03]
[1756442933005,4.17760759,217.87,217.86,0.03]
[1756442933192,36.34,217.87,217.86,0.03]
[1756442934886,40.51760759,217.87,217.86,0.03]
[1756442935087,45.78750064,217.87,217.86,0.03]
[1756442935601,48.85536894,217.87,217.86,0.03]
[1756442937209,45.78750064,217.87,217.86,0.03]
[1756442938207,9.44750064,217.87,217.86,0.03]
[1756442938415,40.49760759,217.87,217.86,0.03]
[1756442939715,45.08750064,217.87,217.86,0.03]
[1756442939908,40.90989305,217.87,217.86,0.03]
[1756442940105,45.08750064,217.87,217.86,0.03]
[1756442940302,40.49760759,217.87,217.86,0.03]
[1756442940489,0.66,217.92,217.86,0.74]
[1756442940687,4.17760759,217.89,217.86,0.74]
[1756442941006,36.32,217.88,217.86,0.03]
[1756442941896,40.90977914,217.88,217.86,0.03]
[1756442942108,45.08738673,217.88,217.86,0.03]
[1756442942497,36.32,217.88,217.86,0.03]
[1756442942794,0.66,217.94,217.87,0.71]
[1756442942999,40.49760759,217.93,217.87,4.88760759]
[1756442943196,4.17760759,217.9,217.86,0.03]
[1756442943391,36.32,217.89,217.86,0.03]
[1756442943594,36.32,217.89,217.86,0.74]
[1756442943905,4.17760759,217.88,217.86,0.03]
[1756442944311,40.90947493,217.89,217.86,0.03]
[1756442944709,45.08708252,217.89,217.86,0.03]
[1756442945209,3.07279603,217.88,217.86,0.03]
[1756442945411,7.66268655,217.88,217.86,0.03]
[1756442945916,11.84029414,217.88,217.86,0.03]
[1756442946224,7.91050107,217.87,217.86,0.03]
[1756442947720,12.50039412,217.87,217.86,0.03]
[1756442948014,11.84039412,217.87,217.86,0.03]
[1756442948991,3.07289348,217.87,217.86,0.03]
[1756442949187,36.32,217.87,217.86,0.74]
[1756442949417,39.39289348,217.87,217.86,0.74]
[1756442949809,36.32,217.87,217.86,0.74]
[1756442950315,36.32,217.88,217.87,26.0]
[1756442950617,36.32,217.88,217.87,4.88760759]
[1756442950819,36.32,217.9,217.87,4.88760759]
[1756442951115,36.32,217.9,217.89,4.17760759]
[1756442951292,39.40134077,217.9,217.89,4.88760759]
[1756442951492,39.40134077,217.9,217.89,0.71]
[1756442952496,8.06761679,217.97,217.89,9.47707934]
[1756442952696,3.08237896,217.96,217.92,4.17760759]
[1756442953000,39.40237896,217.95,217.92,4.88760759]
[1756442953209,39.40237896,217.95,217.93,4.88760759]
[1756442953210,3.08237896,217.94,217.93,4.88760759]
[1756442953716,36.32,217.95,217.93,4.88760759]
[1756442953904,0.06,217.96,217.94,0.71]
[1756442954109,36.32,217.95,217.94,0.71]
[1756442954415,39.40283702,217.95,217.94,0.71]
[1756442954792,39.40283702,217.95,217.93,4.17760759]
[1756442954996,39.40283702,217.95,217.93,0.71]
[1756442954997,3.08392062,217.94,217.93,0.71]
[1756442955217,3.08392062,217.94,217.91,4.88760759]
[1756442955409,3.08392062,217.94,217.92,4.17760759]
[1756442955606,3.08392062,217.94,217.92,4.88760759]
[1756442955809,3.08392062,217.94,217.91,4.17760759]
[1756442956004,3.08392062,217.93,217.9,4.17760759]
[1756442956212,4.89760759,217.96,217.91,4.17760759]
[1756442956213,36.3,217.92,217.91,4.17760759]
[1756442956419,39.38392062,217.92,217.91,4.88760759]
[1756442958927,36.3,217.92,217.91,4.88760759]
[1756442959226,36.3,217.92,217.91,4.17760759]
[1756442959533,39.38658177,217.92,217.9,4.17760759]
[1756442959699,36.3,217.92,217.9,4.17760759]
[1756442960100,36.3,217.92,217.9,4.88760759]
[1756442961219,36.3,217.92,217.91,4.17760759]
[1756442961398,39.3863819,217.92,217.91,4.17760759]
[1756442962202,39.3863819,217.92,217.91,4.88760759]
[1756442962406,36.3,217.92,217.91,4.88760759]
[1756442962607,3.08602853,217.92,217.91,4.88760759]
[1756442962820,36.3,217.92,217.91,4.17760759]
[1756442963030,39.38602853,217.92,217.91,4.88760759]
[1756442963203,39.38569972,217.92,217.91,4.88760759]
[1756442963821,36.3,217.92,217.91,9.47665811]
[1756442964024,0.06,217.96,217.92,13.59559401]
[1756442964211,0.06,217.96,217.95,4.17760759]
[1756442964614,0.06,217.96,217.95,4.88760759]
[1756442965004,0.06,217.96,217.95,9.47581589]
[1756442965207,0.06,217.96,217.95,4.88760759]
[1756442965429,0.06,217.96,217.95,9.47581589]
[1756442965637,0.06,217.96,217.95,23.0714099]
[1756442968309,0.06,217.96,217.95,23.35573304]
[1756442971531,0.06,217.97,217.96,13.59559401]
[1756442971734,0.06,217.97,217.96,14.75439378]
[1756442971939,0.06,217.97,217.96,18.93200137]
[1756442972240,0.06,217.97,217.96,20.77019437]
[1756442972547,0.06,217.97,217.96,16.59258678]
[1756442972713,0.06,217.97,217.96,24.89939239]
[1756442973137,0.06,217.97,217.96,23.06119939]
[1756442974217,0.06,217.97,217.96,23.34552253]
[1756442974421,0.06,217.97,217.96,102.34552253]
[1756442975718,0.06,217.97,217.96,138.62552253]
[1756442976234,0.06,217.97,217.96,102.34552253]
[1756442976411,0.06,217.97,217.96,96.7732016]
[1756442976611,4.23760759,217.97,217.91,0.03]
[1756442976815,4.17760759,217.95,217.91,0.03]
[1756442977145,4.17760759,217.93,217.91,0.03]
[1756442977319,4.88760759,217.94,217.91,0.03]
[1756442977525,4.17760759,217.92,217.91,0.03]
[1756442977942,0.06,217.97,217.92,0.7]
[1756442978242,0.71,217.96,217.93,4.17760759]
[1756442978445,0.71,217.95,217.94,4.17760759]
[1756442978615,0.71,217.95,217.92,4.17760759]
[1756442979413,4.88760759,217.94,217.91,0.03]
[1756442979830,0.71,217.93,217.91,0.03]
[1756442980231,3.07312722,217.96,217.91,0.03]
[1756442980429,36.99,217.95,217.91,0.03]
[1756442980743,36.28,217.94,217.91,0.03]
[1756442980945,36.99,217.94,217.91,0.03]
[1756442981535,0.71,217.93,217.91,0.03]
[1756442982043,4.88760759,217.92,217.91,0.03]
[1756442982726,9.47644753,217.92,217.91,0.03]
[1756442982917,12.5513192,217.92,217.91,0.03]
[1756442985133,9.47644753,217.92,217.91,0.03]
[1756442985657,12.55305401,217.92,217.91,0.03]
[1756442986222,3.78660648,217.92,217.91,0.03]
[1756442986441,48.83305401,217.92,217.91,0.03]
[1756442986638,45.75644753,217.92,217.91,0.03]
[1756442986852,39.35630906,217.92,217.91,0.03]
[1756442987029,36.28,217.92,217.91,0.03]
[1756442987663,39.35656425,217.92,217.91,0.03]
[1756442988254,36.28,217.92,217.91,0.03]
[1756442988640,0.77,217.97,217.91,0.03]
[1756442988833,40.45760759,217.96,217.91,0.73]
[1756442989032,3.07646877,217.95,217.91,0.73]
[1756442989249,0.71,217.94,217.91,0.03]
[1756442990037,5.29858011,217.94,217.91,0.03]
[1756442990242,7.96407636,217.93,217.91,0.03]
[1756442990551,40.45760759,217.92,217.91,0.03]
[1756442990735,44.24407636,217.92,217.91,0.03]
[1756442992050,48.8329163,217.92,217.91,0.03]
[1756442993654,40.06646877,217.92,217.91,0.03]
[1756442993855,39.35646877,217.92,217.91,0.03]
[1756442996434,43.94530871,217.92,217.91,0.03]
[1756442996633,44.65530871,217.92,217.91,0.03]
[1756442996832,48.8329163,217.92,217.91,0.03]
[1756442998560,48.1229163,217.92,217.91,0.03]
[1756442999259,48.8329163,217.92,217.91,0.03]
[1756443000256,48.1229163,217.92,217.91,0.03]
[1756443000560,48.8129163,217.92,217.91,0.03]
[1756443004047,7.66530871,217.92,217.91,0.03]
[1756443004268,48.8129163,217.92,217.91,0.03]
[1756443006955,0.06,217.96,217.91,4.92760759]
[1756443007241,36.28,217.95,217.92,4.89760759]
[1756443007445,36.28,217.95,217.93,0.72]
[1756443007661,36.28,217.95,217.94,0.72]
[1756443007859,39.35534554,217.95,217.94,0.72]
[1756443008262,36.28,217.95,217.94,0.72]
[1756443008461,39.35534487,217.95,217.94,0.72]
[1756443009268,39.35548408,217.95,217.92,4.17760759]
[1756443009571,36.28,217.95,217.93,0.72]
[1756443009775,36.28,217.95,217.94,0.72]
[1756443011176,0.06,217.96,217.94,4.89760759]
[1756443011448,0.06,217.96,217.95,17.7732016]
[1756443011754,0.06,217.96,217.95,18.4932016]
[1756443012483,0.06,217.96,217.91,0.03]
[1756443012653,0.06,217.96,217.93,4.17760759]
[1756443012853,0.06,217.96,217.94,0.72]
[1756443014373,3.13697209,217.96,217.91,14.34559401]
[1756443014577,3.13697209,217.96,217.92,0.72]
[1756443014887,0.06,217.96,217.92,4.17760759]
[1756443015053,0.06,217.96,217.93,0.72]
[1756443015376,3.13796103,217.96,217.93,0.72]
[1756443015965,3.13796103,217.96,217.94,0.72]
[1756443016276,0.06,217.96,217.94,4.89760759]
[1756443016460,0.06,217.96,217.95,18.4932016]
[1756443018475,0.06,217.96,217.95,23.0814099]
[1756443019578,0.06,217.96,217.95,18.4932016]
[1756443020569,0.06,217.96,217.94,4.17760759]
[1756443021056,0.06,217.96,217.95,0.72]
[1756443022258,0.06,217.96,217.95,4.89760759]
[1756443022464,0.06,217.96,217.95,30.89760759]
[1756443022895,0.06,217.96,217.95,30.92760759]
[1756443023175,0.06,217.96,217.95,35.51581589]
[1756443023487,0.06,217.96,217.95,49.1114099]
[1756443024877,0.06,217.96,217.95,44.93380231]
[1756443025062,0.06,217.96,217.95,49.1114099]
[1756443025261,0.06,217.96,217.95,0.03]
[1756443025572,0.06,217.96,217.95,26.03]
[1756443027559,0.06,217.96,217.95,0.03]
[1756443028479,0.06,217.96,217.95,4.92760759]
[1756443028784,0.06,217.96,217.95,23.1114099]
[1756443031190,0.06,217.96,217.95,49.39573304]
[1756443032562,0.06,217.96,217.95,45.21812545]
[1756443032883,0.06,217.96,217.95,43.8032016]
[1756443033388,0.06,217.96,217.95,44.4632016]
[1756443034271,0.06,217.96,217.95,49.0514099]
[1756443034771,0.06,217.96,217.95,44.87380231]
[1756443034977,0.06,217.96,217.95,49.0514099]
[1756443037787,0.06,217.96,217.95,23.79455387]
[1756443037986,0.06,217.96,217.95,23.33573304]
[1756443038182,0.06,217.96,217.95,59.59573304]
[1756443039992,0.06,217.96,217.95,23.33573304]
[1756443040295,0.06,217.96,217.95,59.57573304]
[1756443043073,0.06,217.96,217.95,138.57573304]
[1756443044500,0.06,217.97,217.96,13.87991715]
[1756443044702,0.06,217.99,217.96,13.87991715]
[1756443044703,0.06,217.99,217.98,44.05752474]
[1756443044902,0.06,217.99,217.98,80.75628242]
[1756443045080,0.06,217.99,217.98,81.41628242]
[1756443045703,0.06,217.99,217.98,86.00385926]
[1756443048102,1e-08,217.99,217.98,86.00385926]
[1756443049581,1e-08,217.99,217.98,128.76385926]
[1756443049798,1e-08,217.99,217.98,164.54510158]
[1756443050183,1e-08,217.99,217.98,128.30510158]
[1756443050383,1e-08,217.99,217.98,164.54510158]
[1756443055990,1e-08,217.99,217.98,160.36749399]
[1756443056185,1e-08,217.99,217.98,164.54510158]
[1756443056387,1e-08,217.99,217.98,124.12749399]
[1756443056593,1e-08,217.99,217.98,164.52510158]
[1756443057405,0.72000001,217.99,217.98,13.59559401]
[1756443057606,0.72000001,217.99,217.97,4.17760759]
[1756443057806,0.72,217.98,217.96,4.17760759]
[1756443058010,1e-08,217.99,217.96,4.17760759]
[1756443058011,0.72,217.97,217.96,17.7732016]
[1756443058188,0.72,217.97,217.96,22.36119939]
[1756443058707,0.72,217.97,217.96,17.7732016]
[1756443060208,1e-08,217.99,217.96,22.36119939]
[1756443060404,0.66,217.98,217.97,4.17760759]
[1756443060789,0.66,217.98,217.96,17.7732016]
[1756443061109,0.66,217.97,217.96,26.0]
[1756443061309,1e-08,217.99,217.96,30.17760759]
[1756443061496,0.66,217.98,217.97,4.17760759]
[1756443062610,0.66,217.98,217.96,34.76552846]
[1756443062913,0.66,217.97,217.96,48.36112247]
[1756443064014,0.66,217.97,217.96,43.7732016]
[1756443064212,0.66,217.97,217.96,13.59559401]
[1756443064914,0.66,217.97,217.96,17.7732016]
[1756443065514,0.66000001,217.99,217.96,48.36119939]
[1756443065696,0.66000001,217.99,217.98,4.17760759]
[1756443065905,1e-08,217.99,217.98,4.17760759]
[1756443066807,0.66000001,217.99,217.98,4.17760759]
[1756443067392,1e-08,217.99,217.98,59.26077844]
[1756443067598,1e-08,217.99,217.98,59.54510158]
[1756443068215,1e-08,217.99,217.98,58.58077844]
[1756443068416,1e-08,217.99,217.98,22.36077844]
[1756443068618,0.66000001,217.99,217.97,4.17760759]
[1756443068922,0.66,217.98,217.97,26.0]
[1756443070239,0.66,217.98,217.97,30.17760759]
[1756443070521,1e-08,217.99,217.97,4.17760759]
[1756443070819,0.66000001,217.99,217.98,4.17760759]
[1756443071808,0.66000001,217.99,217.95,0.03]
[1756443072140,7.2549912,217.98,217.95,0.03]
[1756443072318,4.17760759,217.96,217.93,0.03]
[1756443072629,4.17760759,217.94,217.91,0.03]
[1756443072923,4.17760759,217.92,217.91,0.03]
[1756443073128,7.2549912,217.92,217.91,0.03]
[1756443073309,7.9149912,217.92,217.91,0.03]
[1756443073812,12.50383114,217.92,217.91,0.03]
[1756443076608,3.73738361,217.92,217.91,0.03]
[1756443076937,4.83760759,217.92,217.91,0.03]
[1756443077121,7.91799567,217.92,217.91,0.03]
[1756443077504,4.83760759,217.92,217.91,0.03]
[1756443078403,0.66,217.92,217.91,0.03]
[1756443078621,4.83760759,217.92,217.91,0.03]
[1756443078822,0.66,217.92,217.91,0.03]
[1756443079127,4.83760759,217.92,217.91,0.03]
[1756443079437,36.22,217.93,217.91,0.03]
[1756443079800,36.88,217.93,217.91,0.03]
[1756443080423,36.22,217.93,217.91,0.03]
[1756443080607,36.22,217.95,217.92,4.85760759]
[1756443080816,36.22,217.96,217.92,4.85760759]
[1756443081014,36.88,217.96,217.92,4.17760759]
[1756443081420,36.88,217.96,217.91,17.8032016]
[1756443081906,0.66,217.96,217.93,4.17760759]
[1756443082416,36.22,217.97,217.92,4.17760759]
[1756443082645,36.88,217.97,217.92,4.17760759]
[1756443082935,0.66,217.96,217.92,4.17760759]
[1756443084033,4.83760759,217.95,217.91,0.03]
[1756443084416,7.2538169,217.96,217.91,0.03]
[1756443084631,0.66,217.94,217.91,0.03]
[1756443086840,4.83760759,217.93,217.91,0.03]
[1756443087009,40.39760759,217.92,217.91,0.03]
[1756443087420,41.05760759,217.92,217.91,0.03]
[1756443088231,36.88,217.92,217.91,0.03]
[1756443089438,41.05760759,217.92,217.91,0.03]
[1756443092341,45.64644753,217.92,217.91,0.03]
[1756443092547,48.72131081,217.92,217.91,0.03]
[1756443093246,53.18324154,217.92,217.9,0.03]
[1756443093411,26.28432314,217.89,217.88,0.03]
[1756443093613,69.75679401,217.89,217.88,0.03]
[1756443093849,70.42679401,217.89,217.88,0.03]
[1756443094043,34.20679401,217.89,217.88,0.03]
[1756443094254,3.74486328,217.89,217.88,0.03]
[1756443094412,45.65707934,217.89,217.88,0.03]
[1756443094613,48.73194262,217.89,217.88,0.03]
[1756443097353,49.01626576,217.89,217.88,0.03]
[1756443097518,30.46193073,217.87,217.86,1e-08]
[1756443097853,69.75679401,217.87,217.86,1e-08]
[1756443098144,72.26735601,217.87,217.86,1e-08]
[1756443098945,74.73236392,217.87,217.86,1e-08]
[1756443099350,38.51236392,217.87,217.86,1e-08]
[1756443099520,74.73236392,217.87,217.86,1e-08]
[1756443100315,48.73236392,217.87,217.86,1e-08]
[1756443101338,49.01668706,217.87,217.86,1e-08]
[1756443103129,44.55475633,217.87,217.86,1e-08]
[1756443103338,48.73236392,217.87,217.86,1e-08]
[1756443104229,49.01668706,217.87,217.86,1e-08]
[1756443106846,48.06236392,217.87,217.86,1e-08]
[1756443108249,48.73236392,217.87,217.86,1e-08]
[1756443108617,48.06236392,217.87,217.86,1e-08]
[1756443108841,48.73236392,217.87,217.86,1e-08]
[1756443109142,48.06236392,217.87,217.86,1e-08]
[1756443110636,48.79236392,217.87,217.86,1e-08]
[1756443110843,49.07668706,217.87,217.86,1e-08]
[1756443112726,78.92207338,217.87,217.86,1e-08]
[1756443114121,12.18668706,217.87,217.86,1e-08]
[1756443114327,52.92207338,217.87,217.86,1e-08]
[1756443116450,49.07668706,217.87,217.86,1e-08]
[1756443117627,52.92895891,217.87,217.86,1e-08]
[1756443120237,15.75463577,217.87,217.86,1e-08]
[1756443120552,48.12236392,217.87,217.86,1e-08]
[1756443120738,11.90236392,217.87,217.86,1e-08]
[1756443120939,48.12236392,217.87,217.86,1e-08]
[1756443121144,49.11668706,217.87,217.86,1e-08]
[1756443121751,12.18668706,217.87,217.86,1e-08]
[1756443121940,48.40668706,217.87,217.86,1e-08]
[1756443123536,12.18668706,217.87,217.86,1e-08]
[1756443123746,48.40668706,217.87,217.86,1e-08]
[1756443124255,49.11668706,217.87,217.86,1e-08]
[1756443124953,48.40668706,217.87,217.86,1e-08]
[1756443125547,48.12236392,217.87,217.86,1e-08]
[1756443126967,39.35486328,217.87,217.86,0.71000001]
[1756443127339,7.72475633,217.87,217.86,0.71000001]
[1756443127559,48.12236392,217.87,217.86,0.71000001]
[1756443128450,48.12236392,217.87,217.86,1e-08]
[1756443128853,48.12236392,217.87,217.86,0.71000001]
[1756443130158,48.12236392,217.87,217.86,1e-08]
[1756443130468,51.97463577,217.87,217.86,1e-08]
[1756443130851,48.12236392,217.87,217.86,1e-08]
[1756443131448,43.53247087,217.87,217.86,0.71000001]
[1756443131761,51.97463577,217.87,217.86,1e-08]
[1756443132449,48.12236392,217.87,217.86,1e-08]
[1756443132765,49.11668706,217.87,217.86,1e-08]
[1756443132952,49.11668706,217.87,217.85,0.03]
[1756443133266,7.96247087,217.86,217.85,0.03]
[1756443134270,3.07486328,217.86,217.85,0.03]
[1756443134470,7.25247087,217.86,217.85,0.03]
[1756443134672,11.8425746,217.86,217.85,0.03]
[1756443134986,12.5525746,217.86,217.85,0.03]
[1756443135488,17.9640795,217.86,217.85,0.03]
[1756443135666,26.28432314,217.84,217.83,0.03]
[1756443135871,69.73679401,217.84,217.83,0.03]
[1756443136075,70.44679401,217.84,217.83,0.03]
[1756443136382,84.04238802,217.84,217.83,1e-08]
[1756443136561,79.95830464,217.84,217.73,0.91]
[1756443136761,9.62338298,217.81,217.73,0.91]
[1756443136957,0.28432314,217.8,217.79,1e-08]
[1756443137162,12.4244016,217.8,217.79,1e-08]
[1756443137377,31.18144786,217.8,217.79,1e-08]
[1756443137986,36.61949334,217.8,217.79,1e-08]
[1756443138277,31.45804109,217.8,217.79,1e-08]
[1756443138783,36.04940931,217.8,217.79,1e-08]
[1756443139683,4.46193073,217.75,217.73,0.2]
[1756443139872,43.73679401,217.75,217.73,0.2]
[1756443140277,44.44679401,217.75,217.73,0.2]
[1756443140462,48.62440201,217.75,217.73,0.2]
[1756443140887,53.21682451,217.75,217.73,0.2]
[1756443141291,58.37399805,217.75,217.73,0.2]
[1756443142396,53.21682451,217.75,217.73,0.2]
[1756443142867,58.37399805,217.75,217.73,0.2]
[1756443143072,4.46193073,217.74,217.73,0.2]
[1756443143269,33.53679401,217.74,217.73,0.2]
[1756443144200,8.24679401,217.74,217.73,0.2]
[1756443144487,7.53679401,217.74,217.73,0.2]
[1756443144888,12.12942742,217.74,217.73,0.2]
[1756443145275,15.98436588,217.74,217.73,0.2]
[1756443145684,15.84220431,217.74,217.73,0.2]
[1756443145864,48.04510428,217.74,217.73,0.91]
[1756443146065,48.04510428,217.74,217.73,0.2]
[1756443146770,48.04510428,217.74,217.73,0.91]
[1756443147486,74.04510428,217.74,217.73,0.91]
[1756443148393,74.04510428,217.74,217.73,0.2]
[1756443149288,3.07486328,217.74,217.73,0.2]
[1756443149478,44.970241,217.74,217.73,0.91]
[1756443149663,48.04510428,217.74,217.73,0.91]
[1756443150082,48.04510428,217.74,217.73,0.2]
[1756443150290,49.88634328,217.74,217.73,0.2]
[1756443150465,49.88634328,217.74,217.73,0.86]
[1756443150887,49.88634328,217.74,217.73,0.2]
[1756443151474,49.89133414,217.74,217.73,0.86]
[1756443152499,49.89133414,217.74,217.73,0.2]
[1756443154280,45.71372655,217.74,217.73,0.2]
[1756443154475,49.89133414,217.74,217.73,0.2]
[1756443157608,50.58133414,217.74,217.73,0.2]
[1756443157812,49.89133414,217.74,217.73,0.2]
[1756443158406,116.22885888,217.74,217.73,1e-08]
[1756443158721,116.22885888,217.74,217.69,0.03]
[1756443158722,26.28432314,217.7,217.69,0.03]
[1756443159016,77.76803688,217.7,217.69,0.03]
[1756443159215,78.45803688,217.7,217.69,0.03]
[1756443159398,83.05151414,217.7,217.69,0.03]
[1756443160511,84.89360114,217.7,217.69,0.03]
[1756443161306,84.89360114,217.7,217.6,0.66]
[1756443161307,4.5945325,217.65,217.6,0.66]
[1756443161514,4.17760759,217.61,217.57,0.2]
[1756443161827,4.17760759,217.58,217.57,0.2]
[1756443161994,40.37760759,217.58,217.57,0.2]
[1756443162600,40.37760759,217.58,217.57,0.86]
[1756443165505,4.17760759,217.58,217.57,0.86]
[1756443165705,40.37760759,217.58,217.57,0.86]
[1756443166806,0.69,217.64,217.57,0.86]
[1756443167027,4.17760759,217.59,217.58,0.66]
[1756443167229,40.37760759,217.59,217.58,0.66]
[1756443167427,4.597006,217.6,217.58,0.66]
[1756443167619,36.2,217.59,217.58,0.66]
[1756443168720,40.37760759,217.59,217.58,0.66]
[1756443169529,36.2,217.59,217.58,0.66]
[1756443170110,40.37760759,217.59,217.57,0.2]
[1756443170330,4.17760759,217.58,217.57,0.86]
[1756443170727,26.69,217.63,217.57,0.86]
[1756443170913,8.35521559,217.58,217.57,0.86]
[1756443171111,44.55521559,217.58,217.57,0.86]
[1756443171522,4.177608,217.58,217.57,0.2]
[1756443171832,4.59516588,217.62,217.57,0.2]
[1756443171833,4.17760759,217.6,217.57,0.86]
[1756443172032,36.22,217.59,217.58,0.66]
[1756443172236,36.22,217.59,217.57,0.2]
[1756443172626,4.17760759,217.58,217.57,0.2]
[1756443173315,21.76029596,217.58,217.57,0.2]
[1756443173517,18.68644259,217.58,217.57,0.2]
[1756443173937,21.76066237,217.58,217.57,0.2]
[1756443174124,26.35667303,217.58,217.57,0.2]